bitfinex/quotes_SOLUSD_20240905
["timestamp","ask_amount","ask_price","bid_price","bid_amount"]
[1725551169636,7.6144,131.33,131.28,7.6171]
[1725551169833,20.0,131.32,131.27,26.6615]
[1725551170026,7.616,131.31,131.27,19.0438]
[1725551170342,7.6166,131.3,131.25,7.6189]
[1725551170722,84.0337,131.35,131.25,7.6189]
[1725551170935,84.0337,131.35,131.26,7.6183]
[1725551170936,7.6162,131.3,131.26,7.6183]
[1725551171147,7.6162,131.3,131.25,7.619]
[1725551171358,7.6168,131.29,131.25,7.619]
[1725551171662,7.6174,131.28,131.24,6.0488]
[1725551171846,7.6169,131.29,131.24,6.0488]
[1725551172028,20.0,131.35,131.24,6.0488]
[1725551172345,7.6151,131.32,131.27,7.6174]
[1725551172538,20.0,131.35,131.25,19.0468]
[1725551172844,7.6172,131.29,131.25,19.0468]
[1725551173144,7.6168,131.29,131.24,13.668]
[1725551173951,7.6168,131.29,131.25,7.6189]
[1725551174948,7.6168,131.29,131.24,25.0968]
[1725551175128,39.0335,131.35,131.26,7.6184]
[1725551175330,45.0,131.34,131.26,7.6184]
[1725551175546,39.0335,131.35,131.26,7.6184]
[1725551175547,20.0,131.33,131.26,7.6184]
[1725551175741,7.6162,131.3,131.26,7.6184]
[1725551175945,20.0,131.33,131.27,7.6178]
[1725551176150,7.6157,131.31,131.27,7.6178]
[1725551178166,7.6157,131.31,131.26,26.6638]
[1725551178467,44.2667,131.36,131.24,6.0488]
[1725551178468,19.0363,131.33,131.24,6.0488]
[1725551178649,7.6179,131.27,131.24,6.0488]
[1725551178854,19.0395,131.31,131.24,6.0488]
[1725551179071,7.6183,131.27,131.23,19.0505]
[1725551179453,7.6183,131.27,131.23,26.6703]
[1725551179872,7.6174,131.28,131.23,26.6703]
[1725551180045,7.6184,131.26,131.22,23.7836]
[1725551180245,7.6186,131.26,131.22,16.163]
[1725551180550,7.618,131.27,131.22,35.2147]
[1725551180756,7.618,131.27,131.23,7.6201]
[1725551181350,7.6185,131.26,131.22,42.8354]
[1725551182471,20.0,131.3,131.22,16.163]
[1725551182653,7.6171,131.29,131.25,7.6186]
[1725551182851,7.6171,131.29,131.26,1.5178879]
[1725551183166,7.6157,131.31,131.26,7.6183]
[1725551183971,7.6162,131.3,131.26,19.0453]
[1725551184148,7.6162,131.3,131.26,26.6634]
[1725551184348,7.6151,131.32,131.27,7.6177]
[1725551184553,7.6151,131.32,131.28,8.25608409]
[1725551184752,7.6145,131.33,131.29,7.6167]
[1725551184947,7.6138,131.34,131.3,7.6161]
[1725551186138,19.8795361,131.37,131.29,7.6166]
[1725551186139,7.6145,131.33,131.29,7.6166]
[1725551186345,7.6153,131.32,131.28,49.332]
[1725551187073,19.8795361,131.37,131.28,49.332]
[1725551187276,7.6156,131.31,131.28,41.7151]
[1725551187451,7.6152,131.32,131.28,49.3323]
[1725551187853,7.6145,131.33,131.29,7.6165]
[1725551188056,7.6154,131.32,131.28,49.3321]
[1725551188261,7.6157,131.31,131.28,41.7151]
[1725551188555,38.0648,131.36,131.25,22.8495]
[1725551188776,7.6182,131.27,131.25,16.376]
[1725551189084,19.0405,131.3,131.25,16.376]
[1725551189375,20.0,131.29,131.25,16.376]
[1725551190870,27.6171,131.29,131.25,23.9945]
[1725551191054,7.6178,131.28,131.25,16.376]
[1725551192050,20.0,131.29,131.25,23.9948]
[1725551192051,27.6168,131.29,131.25,23.9948]
[1725551192952,7.6175,131.28,131.25,16.376]
[1725551193169,20.0,131.29,131.25,16.376]
[1725551193358,7.618,131.27,131.23,7.6199]
[1725551194579,7.6175,131.28,131.24,7.6196]
[1725551194777,7.6169,131.29,131.25,7.619]
[1725551194991,20.0,131.28,131.26,1.3776829]
[1725551195153,26.1345361,131.37,131.27,20.42082788]
[1725551195460,26.1345361,131.37,131.28,16.4587]
[1725551195662,7.6148,131.33,131.29,7.6166]
[1725551195970,7.614,131.34,131.3,7.616]
[1725551196170,7.6133,131.35,131.31,7.6154]
[1725551196649,7.6128,131.36,131.31,19.0387]
[1725551196853,7.6128,131.36,131.32,7.6149]
[1725551197053,0.8482361,131.37,131.33,20.55746024]
[1725551197264,8.4602361,131.37,131.34,1.52245036]
[1725551198067,20.0,131.36,131.34,1.52245036]
[1725551198564,20.0,131.36,131.3,19.0395]
[1725551198754,7.6137,131.35,131.3,26.6554]
[1725551198955,7.6137,131.35,131.31,7.6154]
[1725551199188,8.4604361,131.37,131.32,7.6149]
[1725551199378,20.0,131.36,131.32,7.6149]
[1725551199959,27.6126,131.36,131.32,7.6149]
[1725551200161,27.6126,131.36,131.31,7.6154]
[1725551200494,27.6126,131.36,131.32,7.6149]
[1725551201895,7.6132,131.35,131.31,7.6155]
[1725551202496,7.6146,131.33,131.3,19.0395]
[1725551202995,7.6139,131.34,131.3,26.6552]
[1725551203299,7.6145,131.33,131.3,19.0395]
[1725551203881,20.0,131.36,131.3,26.6555]
[1725551203882,7.614,131.34,131.3,26.6555]
[1725551204873,7.614,131.34,131.31,7.6155]
[1725551205489,7.614,131.34,131.32,1.52269796]
[1725551206669,7.614,131.34,131.31,1.52270079]
[1725551206870,7.6134,131.35,131.31,9.13810079]
[1725551207104,27.6129,131.36,131.32,9.13627563]
[1725551207395,7.6133,131.35,131.31,7.6153]
[1725551208286,20.0,131.36,131.31,7.6153]
[1725551208287,7.6138,131.34,131.31,7.6153]
[1725551208682,7.6138,131.34,131.3,26.6554]
[1725551209221,7.6148,131.33,131.3,19.0395]
[1725551209377,7.6146,131.33,131.29,7.6166]
[1725551209981,7.615,131.32,131.28,24.0758]
[1725551210179,7.615,131.32,131.29,7.6165]
[1725551210381,7.6147,131.33,131.29,7.6165]
[1725551212005,7.6147,131.33,131.3,1.52290484]
[1725551212299,39.0317,131.36,131.3,7.6158]
[1725551212504,7.6144,131.33,131.29,26.6579]
[1725551212799,7.6157,131.31,131.28,16.4587]
[1725551213013,7.6166,131.3,131.26,26.6636]
[1725551213210,7.6166,131.3,131.24,16.2682]
[1725551213211,20.0,131.3,131.24,16.2682]
[1725551213584,7.6174,131.28,131.24,16.2682]
[1725551213790,7.6174,131.28,131.24,23.8878]
[1725551214612,7.6184,131.26,131.24,16.2682]
[1725551214824,7.618,131.27,131.22,13.7161]
[1725551214996,7.618,131.27,131.23,7.6201]
[1725551215904,7.6173,131.28,131.24,7.6195]
[1725551216314,7.6173,131.28,131.23,7.62]
[1725551216619,7.6189,131.26,131.22,19.0513]
[1725551218397,7.6189,131.26,131.22,26.6719]
[1725551218805,45.0,131.29,131.23,7.6201]
[1725551219120,20.0,131.28,131.23,7.6201]
[1725551219811,27.6177,131.28,131.23,7.6201]
[1725551220199,7.6179,131.27,131.23,7.6201]
[1725551220411,20.0,131.28,131.22,19.0513]
[1725551220609,7.6148,131.33,131.28,7.6168]
[1725551220812,21.4909,131.35,131.26,19.0454]
[1725551220813,7.6163,131.3,131.26,19.0454]
[1725551221505,40.5249,131.35,131.27,7.6174]
[1725551221506,7.6156,131.31,131.27,7.6174]
[1725551221709,7.6151,131.32,131.27,7.6174]
[1725551222299,7.6145,131.33,131.28,19.0429]
[1725551223202,19.0323,131.36,131.27,6.0623]
[1725551223604,7.6152,131.32,131.28,7.6168]
[1725551223811,0.8482361,131.37,131.29,19.0415]
[1725551224015,0.8482361,131.37,131.29,35.569]
[1725551224513,0.8482361,131.37,131.3,0.92797342]
[1725551224839,0.8482361,131.37,131.36,7.6126]
[1725551225194,0.8482361,131.37,131.36,23.124]
[1725551226237,0.8482361,131.37,131.36,62.70911634]
[1725551226598,0.8482361,131.37,131.36,61.1873]
[1725551227396,0.8482361,131.37,131.36,23.124]
[1725551233502,0.8482361,131.37,131.36,15.5114]
[1725551233711,0.8482361,131.37,131.36,23.124]
[1725551234812,0.8482361,131.37,131.35,26.6457]
[1725551235016,0.8482361,131.37,131.35,26.6454]
[1725551235222,0.8482361,131.37,131.35,19.0327]
[1725551235400,0.8482361,131.37,131.36,7.6126]
[1725551237723,0.8482361,131.37,131.35,26.6458]
[1725551238120,0.8482361,131.37,131.36,7.6126]
[1725551240408,0.8482361,131.37,131.36,52.6126]
[1725551242019,0.8482361,131.37,131.36,7.6126]
[1725551244332,0.8482361,131.37,131.36,52.6126]
[1725551245927,0.8482361,131.37,131.36,7.6126]
[1725551247231,0.8482361,131.37,131.32,35.5347]
[1725551247402,0.8482361,131.37,131.34,7.6134]
[1725551247827,0.8482361,131.37,131.33,7.6141]
[1725551248212,0.8482361,131.37,131.34,19.0342]
[1725551248829,0.8482361,131.37,131.35,7.6132]
[1725551250045,0.8482361,131.37,131.36,7.6126]
[1725551251222,0.8482361,131.37,131.36,9.10772275]
[1725551251415,0.8482361,131.37,131.36,7.6126]
[1725551253411,0.8482361,131.37,131.36,57.6126]
[1725551253715,0.8482361,131.37,131.36,129.2165]
[1725551256639,7.6064,131.47,131.43,7.6086]
[1725551256816,28.45471198,131.46,131.42,7.609]
[1725551257011,28.45471198,131.46,131.41,26.6327]
[1725551257012,27.6069,131.46,131.41,26.6327]
[1725551257640,7.6075,131.45,131.41,26.6327]
[1725551258121,7.608,131.44,131.38,19.028]
[1725551258317,7.608,131.44,131.39,7.6104]
[1725551259040,7.608,131.44,131.4,7.6102]
[1725551261122,7.6087,131.43,131.39,7.6108]
[1725551261547,7.6082,131.44,131.39,7.6108]
[1725551261717,7.6082,131.44,131.4,7.6101]
[1725551261922,0.84781198,131.46,131.38,19.028]
[1725551261923,7.6088,131.43,131.39,7.6108]
[1725551262138,7.6082,131.44,131.39,7.6108]
[1725551262547,7.6086,131.43,131.39,7.6108]
[1725551263147,7.6082,131.44,131.4,7.6102]
[1725551263649,7.6074,131.45,131.41,7.6094]
[1725551263851,20.0,131.44,131.41,9.13107717]
[1725551264030,20.0,131.44,131.41,1.52167717]
[1725551264232,0.84781198,131.44,131.39,7.6107]
[1725551264431,7.6092,131.42,131.38,7.6113]
[1725551264628,7.6087,131.43,131.39,7.6109]
[1725551264849,7.6087,131.43,131.39,7.5109]
[1725551265339,7.6081,131.44,131.4,7.6102]
[1725551265554,20.84781198,131.47,131.39,19.027]
[1725551265854,6.99521198,131.48,131.41,19.0238]
[1725551266433,6.99521198,131.48,131.42,1.52136522]
[1725551266648,7.6073,131.46,131.42,7.609]
[1725551266951,6.1474,131.48,131.38,19.0274]
[1725551267155,6.1474,131.48,131.4,7.6099]
[1725551267156,7.6082,131.44,131.4,7.6099]
[1725551267324,7.6076,131.45,131.41,7.6097]
[1725551267745,7.608,131.44,131.4,26.6357]
[1725551267954,7.6092,131.42,131.37,19.0289]
[1725551268156,7.6088,131.43,131.39,7.6109]
[1725551269029,7.6082,131.44,131.4,7.6102]
[1725551269263,20.0,131.43,131.4,7.6102]
[1725551269624,20.0,131.43,131.36,19.0311]
[1725551269825,20.84781198,131.44,131.36,19.0311]
[1725551270040,7.6094,131.42,131.38,26.6395]
[1725551270429,7.6088,131.43,131.39,7.6108]
[1725551271627,7.6088,131.43,131.4,0.56599906]
[1725551271828,7.6088,131.43,131.39,7.6108]
[1725551272833,27.6082,131.44,131.4,7.6102]
[1725551273656,20.0,131.44,131.41,8.42571037]
[1725551274026,20.0,131.44,131.42,1.52156782]
[1725551274732,20.0,131.44,131.41,7.6096]
[1725551275039,7.6076,131.45,131.41,7.6096]
[1725551275251,20.0,131.44,131.41,7.6096]
[1725551276033,27.6081,131.44,131.41,7.6096]
[1725551276660,7.6076,131.45,131.42,9.1306783]
[1725551277235,7.6076,131.45,131.43,1.52154159]
[1725551277855,7.6076,131.45,131.42,7.6091]
[1725551278052,7.6076,131.45,131.41,7.6095]
[1725551278361,7.6089,131.43,131.39,7.6105]
[1725551278561,7.6089,131.43,131.39,26.6376]
[1725551279338,6.1474,131.48,131.38,7.6114]
[1725551279339,7.6094,131.42,131.38,7.6114]
[1725551279538,7.6094,131.42,131.39,7.6107]
[1725551280458,7.607,131.46,131.4,20.53742537]
[1725551280660,7.607,131.46,131.42,26.6316]
[1725551280862,13.7533,131.48,131.44,7.6079]
[1725551281064,6.1474,131.48,131.45,9.11865027]
[1725551281277,6.1474,131.48,131.46,1.5112353]
[1725551281640,13.7532,131.48,131.45,1.5112353]
[1725551282568,6.1474,131.48,131.45,9.1183353]
[1725551282940,13.7531,131.48,131.45,9.1183353]
[1725551283161,13.7531,131.48,131.46,1.51169023]
[1725551283463,0.8482361,131.5,131.43,50.0]
[1725551283663,0.8482361,131.5,131.48,7.6056]
[1725551283871,0.8482361,131.5,131.47,19.0153]
[1725551284241,0.8482361,131.5,131.47,20.34768746]
[1725551284765,0.8482361,131.5,131.47,27.95378746]
[1725551284957,0.8482361,131.5,131.47,26.6214]
[1725551285159,0.8482361,131.5,131.44,19.0192]
[1725551285362,0.84781198,131.49,131.44,21.86889902]
[1725551285543,0.84781198,131.49,131.44,19.0192]
[1725551286061,7.6063,131.47,131.44,19.0192]
[1725551286260,0.84781198,131.49,131.45,7.607]
[1725551286261,7.6055,131.49,131.45,7.607]
[1725551286460,8.4531361,131.5,131.46,7.6068]
[1725551286661,20.0,131.49,131.46,7.6068]
[1725551286968,20.0,131.49,131.44,19.0192]
[1725551286969,27.6051,131.49,131.45,7.6073]
[1725551287546,20.0,131.49,131.46,7.6067]
[1725551287759,20.0,131.49,131.44,19.0192]
[1725551287760,27.6055,131.49,131.45,7.6072]
[1725551288177,8.45351198,131.48,131.44,26.627]
[1725551288483,7.6063,131.47,131.44,19.0192]
[1725551288650,8.45511198,131.46,131.42,7.609]
[1725551288988,7.6081,131.44,131.41,19.0233]
[1725551289157,23.41671198,131.47,131.41,19.44261803]
[1725551289463,22.5689,131.47,131.42,1.52145694]
[1725551289658,20.0,131.46,131.41,21.8734047]
[1725551289880,20.84781198,131.46,131.41,19.0233]
[1725551290077,0.84781198,131.45,131.4,2.8501047]
[1725551290278,0.84781198,131.45,131.38,35.6569]
[1725551290279,27.6071,131.46,131.42,7.6091]
[1725551290656,7.6075,131.45,131.41,7.6095]
[1725551290863,7.608,131.44,131.4,29.4856047]
[1725551291159,7.6081,131.44,131.41,0.70007721]
[1725551291361,0.84781198,131.45,131.39,19.0271]
[1725551291561,45.84781198,131.45,131.39,19.0271]
[1725551291776,27.6084,131.44,131.4,7.6102]
[1725551291954,7.6086,131.43,131.39,29.48861957]
[1725551292280,7.6086,131.43,131.39,26.6378]
[1725551293176,27.608,131.44,131.4,7.61]
[1725551293864,27.608,131.44,131.39,26.6378]
[1725551293865,7.6087,131.43,131.39,26.6378]
[1725551295072,7.6087,131.43,131.39,29.48927125]
[1725551295474,27.6081,131.44,131.4,7.61]
[1725551296560,27.6082,131.44,131.4,7.61]
[1725551296765,0.84781198,131.43,131.39,2.85147125]
[1725551296987,22.3469,131.41,131.37,2.85147125]
[1725551297196,7.6115,131.38,131.33,26.6488]
[1725551297363,0.84781198,131.37,131.34,2.85147125]
[1725551297568,7.6136,131.35,131.32,2.85147125]
[1725551297794,7.6127,131.36,131.33,2.85147125]
[1725551297988,7.6127,131.36,131.32,7.6149]
[1725551298377,7.6127,131.36,131.34,2.85325831]
[1725551298778,7.6127,131.36,131.33,2.85325831]
[1725551299317,7.6127,131.36,131.34,1.51910382]
[1725551299479,7.6117,131.38,131.34,1.51910382]
[1725551299672,20.0,131.37,131.34,1.51910382]
[1725551299872,20.0,131.37,131.34,7.6137]
[1725551300090,20.0,131.37,131.35,7.6131]
[1725551300387,7.6111,131.39,131.34,19.0341]
[1725551300388,0.84781198,131.39,131.34,26.6478]
[1725551300588,65.84781198,131.4,131.34,19.0341]
[1725551300818,7.6115,131.38,131.34,26.6475]
[1725551301395,7.6111,131.39,131.35,7.6131]
[1725551301600,20.0,131.38,131.35,7.6131]
[1725551302102,7.613,131.36,131.32,10.46737394]
[1725551302770,27.6119,131.38,131.34,7.6137]
[1725551306313,7.6121,131.37,131.33,26.6496]
[1725551307398,27.6119,131.38,131.35,7.6132]
[1725551307591,7.6111,131.39,131.36,1.31217853]
[1725551308406,0.84781198,131.4,131.35,19.0329]
[1725551309118,7.6116,131.38,131.35,19.0329]
[1725551309903,7.6116,131.38,131.34,7.6134]
[1725551311126,7.6121,131.37,131.33,7.6143]
[1725551311720,7.6121,131.37,131.34,7.6137]
[1725551311929,7.6117,131.38,131.34,7.6137]
[1725551312625,7.6117,131.38,131.32,19.036]
[1725551312626,7.6128,131.36,131.32,26.6507]
[1725551313131,8.46001198,131.37,131.33,7.6142]
[1725551313311,8.46051198,131.36,131.33,7.6142]
[1725551313625,7.6127,131.36,131.33,7.6142]
[1725551314124,7.6122,131.37,131.33,7.6142]
[1725551314359,0.84781198,131.38,131.34,7.6137]
[1725551314360,8.45951198,131.38,131.34,7.6137]
[1725551314501,7.6117,131.38,131.34,7.6137]
[1725551315030,7.6117,131.38,131.35,0.69490837]
[1725551315204,0.84781198,131.39,131.35,8.30800837]
[1725551315205,7.6113,131.39,131.35,8.30800837]
[1725551315403,20.0,131.41,131.37,7.6116]
[1725551315404,27.6101,131.41,131.37,7.6116]
[1725551315600,7.6113,131.39,131.35,7.6132]
[1725551316216,7.6101,131.41,131.36,7.6124]
[1725551316414,7.6104,131.4,131.36,7.6124]
[1725551316622,7.6099,131.41,131.37,8.21492486]
[1725551316823,7.6099,131.41,131.37,7.612]
[1725551317121,20.0,131.4,131.38,0.62095948]
[1725551317319,8.45711198,131.42,131.38,8.23235948]
[1725551317503,7.6088,131.43,131.39,7.6109]
[1725551317707,7.6088,131.43,131.4,0.62086496]
[1725551317935,22.91321198,131.44,131.4,7.6101]
[1725551317936,7.6082,131.44,131.4,7.6101]
[1725551318115,7.6082,131.44,131.4,9.13190048]
[1725551318322,8.45651198,131.43,131.39,19.0266]
[1725551318640,7.6087,131.43,131.39,19.0266]
[1725551318815,7.6087,131.43,131.39,26.6373]
[1725551320533,7.6087,131.43,131.4,0.72519167]
[1725551320738,7.6087,131.43,131.39,26.6373]
[1725551321242,7.6092,131.42,131.39,19.0266]
[1725551321446,7.6092,131.42,131.39,20.46845801]
[1725551321732,7.6092,131.42,131.39,19.0266]
[1725551321923,7.6092,131.42,131.39,20.468778]
[1725551323135,0.84781198,131.45,131.4,1.44593414]
[1725551323338,65.84781198,131.45,131.39,19.0266]
[1725551323638,7.6087,131.43,131.39,26.6372]
[1725551324150,7.6082,131.44,131.4,7.6102]
[1725551324326,27.6086,131.43,131.4,7.6102]
[1725551324521,7.6086,131.43,131.4,7.6102]
[1725551324920,7.6082,131.44,131.4,7.6102]
[1725551325322,7.6082,131.44,131.41,1.52169971]
[1725551325946,7.6082,131.44,131.4,7.6102]
[1725551327826,0.84781198,131.43,131.39,19.0266]
[1725551328031,0.84781198,131.43,131.34,88.0673]
[1725551328032,0.84781198,131.43,131.34,15.7216]
[1725551328251,0.84781198,131.43,131.35,2.85144793]
[1725551328252,7.6118,131.38,131.35,2.85144793]
[1725551328936,7.6111,131.39,131.35,2.85144793]
[1725551329941,7.6116,131.38,131.35,2.85144793]
[1725551330352,7.6126,131.36,131.35,2.85144793]
[1725551330858,7.6121,131.37,131.35,2.85144793]
[1725551331228,7.6116,131.38,131.35,2.85144793]
[1725551335238,7.6121,131.37,131.35,2.85144793]
[1725551335652,7.6115,131.38,131.35,2.85144793]
[1725551336149,7.6115,131.38,131.35,5.70422727]
[1725551336553,7.6115,131.38,131.35,2.85144793]
[1725551337843,7.6115,131.38,131.35,5.70417154]
[1725551338164,7.6115,131.38,131.35,8.55689515]
[1725551338657,7.6111,131.39,131.36,1.52240919]
[1725551338867,20.0,131.38,131.36,1.52240919]
[1725551339441,7.6104,131.4,131.36,7.6122]
[1725551339766,20.0,131.39,131.36,7.6122]
[1725551341141,27.6109,131.39,131.36,7.6122]
[1725551341860,7.6126,131.36,131.35,11.41097316]
[1725551342067,7.6122,131.37,131.35,11.41097316]
[1725551342251,0.84781198,131.37,131.35,8.55822521]
[1725551342451,8.45941198,131.38,131.35,11.41097316]
[1725551342857,0.84781198,131.38,131.35,11.41097316]
[1725551343049,7.6126,131.36,131.35,8.55822521]
[1725551343366,7.6134,131.35,131.33,2.85274795]
[1725551343745,7.6134,131.35,131.31,7.6155]
[1725551344162,20.84781198,131.34,131.28,16.1981]
[1725551344355,20.84781198,131.34,131.27,19.0438]
[1725551344759,7.6145,131.33,131.28,7.6172]
[1725551344944,0.84781198,131.32,131.28,7.6172]
[1725551345147,8.46281198,131.32,131.27,26.6615]
[1725551345358,7.615,131.32,131.27,26.6615]
[1725551345572,0.84781198,131.31,131.27,26.6615]
[1725551345944,8.46341198,131.31,131.27,26.6615]
[1725551346171,7.6145,131.33,131.28,8.06716541]
[1725551346470,0.84781198,131.34,131.29,1.52316205]
[1725551346645,53.46171198,131.34,131.29,1.52316205]
[1725551346850,20.0,131.33,131.29,1.52316205]
[1725551347062,20.0,131.33,131.3,7.6161]
[1725551347573,0.84781198,131.35,131.31,8.23093247]
[1725551347746,7.6127,131.36,131.31,8.23093247]
[1725551347948,8.46111198,131.35,131.31,7.6154]
[1725551348251,7.6133,131.35,131.31,7.6154]
[1725551348465,7.6127,131.36,131.32,1.51950087]
[1725551348871,0.84781198,131.35,131.31,7.6154]
[1725551349174,45.84781198,131.35,131.29,19.0408]
[1725551349372,7.6148,131.33,131.29,19.0408]
[1725551349676,0.84781198,131.32,131.29,19.0408]
[1725551349881,7.6148,131.33,131.29,26.6574]
[1725551349882,8.46261198,131.33,131.29,26.6574]
[1725551350181,28.46171198,131.34,131.3,7.616]
[1725551350542,20.0,131.34,131.31,7.6153]
[1725551350754,7.6122,131.37,131.32,7.6149]
[1725551350967,7.6122,131.37,131.33,7.6143]
[1725551351163,0.84781198,131.39,131.35,7.6127]
[1725551351379,0.84781198,131.39,131.34,7.6134]
[1725551351380,8.45911198,131.39,131.34,7.6134]
[1725551351572,7.6104,131.4,131.35,7.6129]
[1725551351784,7.6104,131.4,131.33,19.0355]
[1725551351785,7.6104,131.4,131.36,7.6126]
[1725551351959,8.45701198,131.42,131.37,7.6119]
[1725551352163,7.6098,131.41,131.36,7.6125]
[1725551352377,0.84781198,131.4,131.36,7.6125]
[1725551352658,8.45831198,131.4,131.36,7.6125]
[1725551352860,0.84781198,131.39,131.36,7.6125]
[1725551353069,7.6105,131.4,131.36,7.6125]
[1725551353657,0.84781198,131.42,131.38,7.6109]
[1725551353863,0.84781198,131.43,131.33,88.0693]
[1725551354059,0.84781198,131.43,131.39,26.6375]
[1725551354891,8.45651198,131.43,131.39,19.0268]
[1725551355070,8.45651198,131.43,131.38,7.6113]
[1725551355071,7.6092,131.42,131.38,7.6113]
[1725551355264,7.6102,131.41,131.36,26.6433]
[1725551355487,19.0193,131.45,131.36,26.6433]
[1725551355488,7.6092,131.42,131.37,7.6118]
[1725551355797,0.84781198,131.41,131.37,7.6118]
[1725551355969,7.6092,131.42,131.37,7.6118]
[1725551356172,7.6092,131.42,131.38,7.6114]
[1725551356392,20.0,131.41,131.38,7.6114]
[1725551356687,20.84781198,131.41,131.37,7.6116]
[1725551357279,20.0,131.41,131.38,7.6114]
[1725551357593,20.0,131.41,131.39,7.6109]
[1725551357770,7.6087,131.43,131.39,7.6109]
[1725551357971,20.0,131.42,131.39,7.6109]
[1725551358378,20.0,131.42,131.39,9.13285167]
[1725551358590,20.0,131.42,131.39,7.6109]
[1725551358777,0.84781198,131.41,131.38,26.6396]
[1725551358979,20.0,131.42,131.38,26.6396]
[1725551358980,20.84781198,131.42,131.38,26.6396]
[1725551359667,28.45701198,131.42,131.38,26.6396]
[1725551360194,0.84781198,131.41,131.38,26.6396]
[1725551360573,20.0,131.42,131.39,7.6109]
[1725551360766,0.84781198,131.45,131.4,7.6103]
[1725551360767,7.6084,131.44,131.4,7.6103]
[1725551360969,20.84781198,131.43,131.4,7.6103]
[1725551361368,20.0,131.43,131.4,7.6103]
[1725551361568,7.6076,131.45,131.41,7.6096]
[1725551361768,20.84781198,131.44,131.41,7.6096]
[1725551362187,20.84781198,131.44,131.4,26.6356]
[1725551362383,7.6092,131.42,131.38,7.6113]
[1725551362585,7.6088,131.43,131.39,7.6109]
[1725551362994,8.45611198,131.44,131.4,9.13218818]
[1725551363197,20.0,131.43,131.4,9.13218818]
[1725551363585,20.0,131.43,131.4,7.6102]
[1725551364287,20.0,131.43,131.39,19.0269]
[1725551364489,7.6089,131.43,131.39,26.6377]
[1725551365511,7.6082,131.44,131.4,7.6099]
[1725551365673,20.0,131.43,131.4,7.6099]
[1725551366302,27.6087,131.43,131.39,26.6374]
[1725551366798,7.6082,131.44,131.4,7.6102]
[1725551366983,27.6086,131.43,131.4,7.6102]
[1725551367184,27.6086,131.43,131.39,26.6376]
[1725551368000,0.84781198,131.46,131.41,19.0242]
[1725551368182,7.6075,131.45,131.41,19.0242]
[1725551368384,20.0,131.44,131.41,26.6336]
[1725551369399,0.84781198,131.46,131.41,19.0242]
[1725551369588,7.6067,131.47,131.43,7.6084]
[1725551369780,27.6069,131.46,131.43,7.6084]
[1725551369979,7.6069,131.46,131.42,7.6089]
[1725551370596,21.69604808,131.5,131.44,7.6079]
[1725551370778,0.8482361,131.5,131.43,6.6593]
[1725551370975,0.8482361,131.5,131.47,7.6058]
[1725551371403,0.8482361,131.5,131.46,7.6066]
[1725551371594,1.69604808,131.5,131.46,7.6066]
[1725551371907,7.6053,131.49,131.45,19.0183]
[1725551372201,9.30074808,131.5,131.45,19.0183]
[1725551372502,9.30074808,131.5,131.45,26.6256]
[1725551373207,7.6051,131.49,131.45,26.6256]
[1725551374103,0.8482361,131.5,131.46,7.6066]
[1725551374304,28.4528361,131.5,131.46,7.6066]
[1725551375284,20.8482361,131.5,131.47,7.6062]
[1725551376080,0.8482361,131.5,131.47,7.6062]
[1725551376296,20.8482361,131.5,131.47,7.6062]
[1725551377002,28.4528361,131.5,131.46,7.6066]
[1725551380382,28.4528361,131.5,131.45,26.6255]
[1725551380383,8.45301198,131.49,131.45,26.6255]
[1725551380786,8.45361198,131.48,131.45,19.0183]
[1725551380985,8.45361198,131.48,131.44,7.6078]
[1725551381792,8.45311198,131.49,131.45,7.6074]
[1725551382616,7.6053,131.49,131.45,7.6074]
[1725551382785,8.45311198,131.49,131.45,7.6074]